[Event "*** SCC Grand Prix: Titled Tuesday Blitz"]
[Site "Chess.com"]
[Date "2020.09.08"]
[Round "8"]
[White "abykhovsky"]
[Black "gui_borba"]
[Result "1/2-1/2"]
[WhiteElo "2644"]
[BlackElo "2429"]
[TimeControl "180+1"]
[EndTime "11:35:52 PDT"]
[Termination "Game drawn by repetition"]

1. d4 {[%clk 0:03:00.9]} 1... Nf6 {[%clk 0:02:59.6]} 2. Nf3 {[%clk 0:03:01.3]}
2... e6 {[%clk 0:03:00.2]} 3. c4 {[%clk 0:03:02.2]} 3... d5 {[%clk 0:02:58.1]}
4. Nc3 {[%clk 0:03:02.1]} 4... a6 {[%clk 0:02:58.1]} 5. cxd5 {[%clk 0:02:59.6]}
5... exd5 {[%clk 0:02:59]} 6. Bg5 {[%clk 0:02:59.5]} 6... Be6 {[%clk 0:02:57.8]}
7. e3 {[%clk 0:03:00]} 7... Nbd7 {[%clk 0:02:57.3]} 8. Qc2 {[%clk 0:03:00.2]}
8... h6 {[%clk 0:02:56.1]} 9. Bh4 {[%clk 0:03:00.1]} 9... c6 {[%clk 0:02:56.5]}
10. Bd3 {[%clk 0:02:59.7]} 10... Bd6 {[%clk 0:02:56.3]} 11. O-O-O {[%clk
0:02:58.5]} 11... Qc7 {[%clk 0:02:50.6]} 12. Kb1 {[%clk 0:02:58.2]} 12... O-O-O
{[%clk 0:02:50.2]} 13. Rc1 {[%clk 0:02:57.2]} 13... Kb8 {[%clk 0:02:49.3]} 14.
Na4 {[%clk 0:02:51.6]} 14... Rhe8 {[%clk 0:02:38.2]} 15. Nc5 {[%clk 0:02:50.1]}
15... g5 {[%clk 0:02:27.4]} 16. Bg3 {[%clk 0:02:48.6]} 16... Bxg3 {[%clk
0:02:26.3]} 17. hxg3 {[%clk 0:02:41.2]} 17... Ng4 {[%clk 0:02:12.5]} 18. Qe2
{[%clk 0:02:07.9]} 18... Nxc5 {[%clk 0:01:59.5]} 19. Rxc5 {[%clk 0:02:06.5]}
19... Qd7 {[%clk 0:01:52.6]} 20. Qc2 {[%clk 0:01:44.6]} 20... Rh8 {[%clk
0:01:41.9]} 21. Ka1 {[%clk 0:01:35.4]} 21... f6 {[%clk 0:01:33]} 22. b4 {[%clk
0:01:30.4]} 22... Rc8 {[%clk 0:01:25.7]} 23. a4 {[%clk 0:01:29.4]} 23... h5
{[%clk 0:01:13.8]} 24. Rb1 {[%clk 0:01:19.5]} 24... Nh6 {[%clk 0:01:03]} 25. Qb2
{[%clk 0:01:17.7]} 25... Bf5 {[%clk 0:00:59.9]} 26. Bxf5 {[%clk 0:01:17.1]}
26... Nxf5 {[%clk 0:01:00.8]} 27. b5 {[%clk 0:01:17.4]} 27... cxb5 {[%clk
0:00:50.8]} 28. axb5 {[%clk 0:01:16.5]} 28... Rxc5 {[%clk 0:00:39.9]} 29. dxc5
{[%clk 0:01:17.4]} 29... Qxb5 {[%clk 0:00:39.9]} 30. Qxb5 {[%clk 0:01:17.2]}
30... axb5 {[%clk 0:00:39.9]} 31. Rxb5 {[%clk 0:01:17.8]} 31... Kc7 {[%clk
0:00:40.3]} 32. Rb6 {[%clk 0:01:16.5]} 32... Ra8+ {[%clk 0:00:36.4]} 33. Kb2
{[%clk 0:01:15.1]} 33... Ra6 {[%clk 0:00:37.3]} 34. Rxa6 {[%clk 0:01:08.1]}
34... bxa6 {[%clk 0:00:38.2]} 35. Nd4 {[%clk 0:01:08.7]} 35... Nxd4 {[%clk
0:00:33.7]} 36. exd4 {[%clk 0:01:08.6]} 36... Kc6 {[%clk 0:00:34.6]} 37. Kb3
{[%clk 0:01:08.7]} 37... Kb5 {[%clk 0:00:34.8]} 38. Ka3 {[%clk 0:01:09.2]} 38...
Ka5 {[%clk 0:00:34.4]} 39. Kb3 {[%clk 0:01:07.4]} 39... Kb5 {[%clk 0:00:34.6]}
40. Kc3 {[%clk 0:01:06.6]} 40... f5 {[%clk 0:00:29.1]} 41. f4 {[%clk 0:01:02.5]}
41... g4 {[%clk 0:00:23.4]} 42. Kd3 {[%clk 0:01:02.4]} 42... Kc6 {[%clk
0:00:22.4]} 43. Kc2 {[%clk 0:01:02.2]} 43... Kb5 {[%clk 0:00:23.3]} 44. Kb3
{[%clk 0:01:00.8]} 44... Ka5 {[%clk 0:00:21.8]} 45. Ka3 {[%clk 0:00:56.5]} 45...
Kb5 {[%clk 0:00:22.2]} 46. Kb3 {[%clk 0:00:57]} 46... Ka5 {[%clk 0:00:22.7]} 47.
Ka3 {[%clk 0:00:57.4]} 47... Kb5 {[%clk 0:00:23.2]} 48. Kb3 {[%clk 0:00:57.3]}
1/2-1/2

[Event "*** SCC Grand Prix: Titled Tuesday Blitz"]
[Site "Chess.com"]
[Date "2020.09.08"]
[Round "8"]
[White "jefferyx"]
[Black "KuzubovYuriy"]
[Result "0-1"]
[WhiteElo "2933"]
[BlackElo "2934"]
[TimeControl "180+1"]
[EndTime "11:35:53 PDT"]
[Termination "KuzubovYuriy won by resignation"]

1. d4 {[%clk 0:01:09.4]} 1... Nf6 {[%clk 0:02:58.9]} 2. c4 {[%clk 0:01:08.8]}
2... e6 {[%clk 0:02:59]} 3. Nc3 {[%clk 0:01:09.2]} 3... d5 {[%clk 0:02:58.4]} 4.
Bg5 {[%clk 0:01:07.6]} 4... Nbd7 {[%clk 0:02:45.4]} 5. e3 {[%clk 0:01:06.6]}
5... h6 {[%clk 0:02:43.4]} 6. Bh4 {[%clk 0:01:06.4]} 6... Be7 {[%clk 0:02:41]}
7. Nf3 {[%clk 0:01:06.6]} 7... O-O {[%clk 0:02:40.4]} 8. Bd3 {[%clk 0:01:07.1]}
8... dxc4 {[%clk 0:02:35.2]} 9. Bxc4 {[%clk 0:01:08]} 9... a6 {[%clk 0:02:32.5]}
10. a4 {[%clk 0:01:05.9]} 10... c5 {[%clk 0:02:26.1]} 11. O-O {[%clk 0:01:06.2]}
11... cxd4 {[%clk 0:02:25.5]} 12. Nxd4 {[%clk 0:01:06.9]} 12... Ne5 {[%clk
0:02:20.5]} 13. Be2 {[%clk 0:01:06.3]} 13... Bd7 {[%clk 0:02:18.5]} 14. Bg3
{[%clk 0:01:06.2]} 14... Nc6 {[%clk 0:02:18]} 15. Bf3 {[%clk 0:01:06.7]} 15...
Rc8 {[%clk 0:02:14.4]} 16. Rc1 {[%clk 0:01:07.3]} 16... Nxd4 {[%clk 0:02:10.8]}
17. Qxd4 {[%clk 0:01:08.2]} 17... Bc6 {[%clk 0:02:10.6]} 18. Rfd1 {[%clk
0:00:50.1]} 18... Qxd4 {[%clk 0:02:05]} 19. Rxd4 {[%clk 0:00:50.2]} 19... Bxf3
{[%clk 0:02:04.7]} 20. gxf3 {[%clk 0:00:51.1]} 20... Rfd8 {[%clk 0:02:04.3]} 21.
Rcd1 {[%clk 0:00:51.2]} 21... Rxd4 {[%clk 0:02:01.3]} 22. Rxd4 {[%clk
0:00:52.1]} 22... Kf8 {[%clk 0:01:58.8]} 23. Kf1 {[%clk 0:00:52.4]} 23... Ke8
{[%clk 0:01:58.6]} 24. Ke2 {[%clk 0:00:53]} 24... Nd7 {[%clk 0:01:55.4]} 25. Bd6
{[%clk 0:00:48.5]} 25... Bf6 {[%clk 0:01:52.3]} 26. Rd3 {[%clk 0:00:47.6]} 26...
Bxc3 {[%clk 0:01:51.7]} 27. Rxc3 {[%clk 0:00:48.5]} 27... Rxc3 {[%clk
0:01:51.1]} 28. bxc3 {[%clk 0:00:49.4]} 28... Nb6 {[%clk 0:01:46.1]} 29. a5
{[%clk 0:00:49.6]} 29... Nc4 {[%clk 0:01:44.2]} 30. Bb4 {[%clk 0:00:49.5]} 30...
Kd7 {[%clk 0:01:33.5]} 31. Kd3 {[%clk 0:00:41.8]} 31... Ne5+ {[%clk 0:01:33.3]}
32. Ke4 {[%clk 0:00:41.5]} 32... Nc6 {[%clk 0:01:32.7]} 33. Bf8 {[%clk
0:00:41.2]} 33... g6 {[%clk 0:01:32.6]} 34. Bb4 {[%clk 0:00:34.7]} 34... f5+
{[%clk 0:01:23.8]} 35. Kd3 {[%clk 0:00:34.8]} 35... Ne5+ {[%clk 0:01:23.6]} 36.
Ke2 {[%clk 0:00:34.4]} 36... Kc6 {[%clk 0:01:23.1]} 37. Bf8 {[%clk 0:00:31.8]}
37... Kd5 {[%clk 0:01:17.3]} 38. Bxh6 {[%clk 0:00:31.3]} 38... Nc6 {[%clk
0:01:15.8]} 39. Kd3 {[%clk 0:00:30.7]} 39... Nxa5 {[%clk 0:01:10.3]} 40. e4+
{[%clk 0:00:31.6]} 40... Kd6 {[%clk 0:01:06.4]} 41. Bf8+ {[%clk 0:00:30.9]}
41... Kd7 {[%clk 0:01:04.1]} 42. Kd4 {[%clk 0:00:31.8]} 42... Nc6+ {[%clk
0:01:01.3]} 43. Kc5 {[%clk 0:00:32.1]} 43... Ne5 {[%clk 0:01:00.3]} 44. Kb6
{[%clk 0:00:31.9]} 44... Kc8 {[%clk 0:00:59.7]} 45. Kc5 {[%clk 0:00:20.2]} 45...
Nd7+ {[%clk 0:00:59]} 46. Kd6 {[%clk 0:00:20.8]} 46... Nxf8 {[%clk 0:00:59.1]}
47. Ke7 {[%clk 0:00:21.7]} 47... a5 {[%clk 0:00:58.9]} 0-1

[Event "*** SCC Grand Prix: Titled Tuesday Blitz"]
[Site "Chess.com"]
[Date "2020.09.08"]
[Round "8"]
[White "DishonorOnYourCow"]
[Black "OscarAng"]
[Result "0-1"]
[WhiteElo "2338"]
[BlackElo "2260"]
[TimeControl "180+1"]
[EndTime "11:35:53 PDT"]
[Termination "OscarAng won on time"]

1. d4 {[%clk 0:03:00.9]} 1... d5 {[%clk 0:03:00.1]} 2. c4 {[%clk 0:02:59.5]}
2... e6 {[%clk 0:02:56.5]} 3. Nc3 {[%clk 0:02:57.3]} 3... Nf6 {[%clk 0:02:56.6]}
4. cxd5 {[%clk 0:02:57.1]} 4... exd5 {[%clk 0:02:56]} 5. Bg5 {[%clk 0:02:56.9]}
5... c6 {[%clk 0:02:56.3]} 6. e3 {[%clk 0:02:53.5]} 6... h6 {[%clk 0:02:55.9]}
7. Bh4 {[%clk 0:02:51.7]} 7... Bf5 {[%clk 0:02:56.3]} 8. Qf3 {[%clk 0:02:42.9]}
8... Bg6 {[%clk 0:02:39.4]} 9. Bxf6 {[%clk 0:02:42.1]} 9... Qxf6 {[%clk
0:02:35.5]} 10. Qxf6 {[%clk 0:02:41.6]} 10... gxf6 {[%clk 0:02:36.4]} 11. h4
{[%clk 0:02:39.5]} 11... Bd6 {[%clk 0:02:32.8]} 12. h5 {[%clk 0:02:32.8]} 12...
Bh7 {[%clk 0:02:28.2]} 13. Be2 {[%clk 0:02:24.2]} 13... Nd7 {[%clk 0:02:26.5]}
14. g3 {[%clk 0:02:18.1]} 14... b5 {[%clk 0:02:15.9]} 15. a3 {[%clk 0:02:14.2]}
15... Nb6 {[%clk 0:02:13.5]} 16. Nf3 {[%clk 0:02:01.8]} 16... Rg8 {[%clk
0:02:13.4]} 17. O-O-O {[%clk 0:01:46.3]} 17... a5 {[%clk 0:02:10.4]} 18. Bd3
{[%clk 0:01:26.5]} 18... Bxd3 {[%clk 0:01:58.7]} 19. Rxd3 {[%clk 0:01:27.4]}
19... b4 {[%clk 0:01:59.2]} 20. Nb1 {[%clk 0:01:21]} 20... Kd7 {[%clk
0:01:59.7]} 21. Nh4 {[%clk 0:01:13.4]} 21... Rgc8 {[%clk 0:01:40.6]} 22. Nf5
{[%clk 0:01:10.7]} 22... Bf8 {[%clk 0:01:35.4]} 23. Nd2 {[%clk 0:00:51.6]} 23...
bxa3 {[%clk 0:01:29]} 24. bxa3 {[%clk 0:00:50.4]} 24... Rab8 {[%clk 0:01:27.1]}
25. Kd1 {[%clk 0:00:47.5]} 25... Nc4 {[%clk 0:01:24.1]} 26. Ke2 {[%clk
0:00:35.1]} 26... Rb2 {[%clk 0:01:17.7]} 27. Rc1 {[%clk 0:00:16.3]} 27... Rcb8
{[%clk 0:01:07.2]} 28. e4 {[%clk 0:00:14.7]} 28... dxe4 {[%clk 0:01:01.2]} 29.
Rxc4 {[%clk 0:00:08.2]} 29... exd3+ {[%clk 0:00:59.4]} 30. Kxd3 {[%clk
0:00:09.1]} 30... Ra2 {[%clk 0:00:50.4]} 31. Ne4 {[%clk 0:00:02.4]} 31... Rxa3+
{[%clk 0:00:49.3]} 32. Rc3 {[%clk 0:00:02.3]} 32... Rxc3+ {[%clk 0:00:48.6]} 33.
Kxc3 {[%clk 0:00:02.8]} 33... a4 {[%clk 0:00:47.8]} 34. Nxf6+ {[%clk 0:00:02.6]}
34... Ke6 {[%clk 0:00:43.8]} 0-1

[Event "*** SCC Grand Prix: Titled Tuesday Blitz"]
[Site "Chess.com"]
[Date "2020.09.08"]
[Round "8"]
[White "nrvisakh"]
[Black "Artyom_ChessMate"]
[Result "1-0"]
[WhiteElo "2748"]
[BlackElo "2573"]
[TimeControl "180+1"]
[EndTime "11:35:58 PDT"]
[Termination "nrvisakh won by resignation"]

1. e4 {[%clk 0:03:00.9]} 1... c5 {[%clk 0:03:00.2]} 2. Nf3 {[%clk 0:02:56.6]}
2... d6 {[%clk 0:03:00.6]} 3. Bb5+ {[%clk 0:02:54.3]} 3... Bd7 {[%clk
0:03:00.5]} 4. Bxd7+ {[%clk 0:02:53.8]} 4... Qxd7 {[%clk 0:03:01.4]} 5. O-O
{[%clk 0:02:54]} 5... Nc6 {[%clk 0:02:53.4]} 6. c4 {[%clk 0:02:52.9]} 6... Nf6
{[%clk 0:02:48.7]} 7. Nc3 {[%clk 0:02:51.9]} 7... g6 {[%clk 0:02:48]} 8. d4
{[%clk 0:02:51.3]} 8... cxd4 {[%clk 0:02:48.9]} 9. Nxd4 {[%clk 0:02:52.2]} 9...
Bg7 {[%clk 0:02:47.9]} 10. Nc2 {[%clk 0:02:31.1]} 10... O-O {[%clk 0:02:41.6]}
11. Qe2 {[%clk 0:02:30.5]} 11... Rac8 {[%clk 0:02:38.5]} 12. Rd1 {[%clk
0:02:29.7]} 12... Rfd8 {[%clk 0:02:36.4]} 13. Rb1 {[%clk 0:02:29.1]} 13... Ne5
{[%clk 0:02:25.2]} 14. b3 {[%clk 0:02:25.9]} 14... a6 {[%clk 0:02:24.4]} 15. Bb2
{[%clk 0:02:25.3]} 15... b5 {[%clk 0:02:21]} 16. cxb5 {[%clk 0:02:18.8]} 16...
axb5 {[%clk 0:02:21.9]} 17. Nb4 {[%clk 0:02:18.9]} 17... Ra8 {[%clk 0:01:48.1]}
18. a3 {[%clk 0:02:15.2]} 18... Nc6 {[%clk 0:01:40.7]} 19. Ncd5 {[%clk
0:01:57.6]} 19... Nxd5 {[%clk 0:01:35.5]} 20. Nxd5 {[%clk 0:01:55.2]} 20... Qb7
{[%clk 0:01:32.5]} 21. Rbc1 {[%clk 0:01:49.5]} 21... Rac8 {[%clk 0:00:58.8]} 22.
b4 {[%clk 0:01:42.6]} 22... Bxb2 {[%clk 0:00:54.1]} 23. Qxb2 {[%clk 0:01:42.5]}
23... Ne5 {[%clk 0:00:53.4]} 24. Qd4 {[%clk 0:01:38.6]} 24... Nc4 {[%clk
0:00:47.1]} 25. a4 {[%clk 0:01:37.2]} 25... e5 {[%clk 0:00:35.4]} 26. Qc3 {[%clk
0:01:15]} 26... bxa4 {[%clk 0:00:30.7]} 27. Qh3 {[%clk 0:01:10.2]} 27... Kg7
{[%clk 0:00:12]} 28. Qh4 {[%clk 0:01:06.8]} 28... Nb6 {[%clk 0:00:09.8]} 29.
Qf6+ {[%clk 0:01:06.3]} 29... Kh6 {[%clk 0:00:07.2]} 30. Ne7 {[%clk 0:00:40.7]}
30... Rxc1 {[%clk 0:00:06.1]} 31. Nf5+ {[%clk 0:00:39.7]} 1-0

[Event "*** SCC Grand Prix: Titled Tuesday Blitz"]
[Site "Chess.com"]
[Date "2020.09.08"]
[Round "8"]
[White "GregShahade"]
[Black "korbul"]
[Result "1-0"]
[WhiteElo "2610"]
[BlackElo "2455"]
[TimeControl "180+1"]
[EndTime "11:35:58 PDT"]
[Termination "GregShahade won by checkmate"]

1. e4 {[%clk 0:03:00.9]} 1... c5 {[%clk 0:02:59.8]} 2. Nf3 {[%clk 0:03:01.2]}
2... e6 {[%clk 0:03:00.3]} 3. d4 {[%clk 0:03:01.9]} 3... cxd4 {[%clk 0:03:00.6]}
4. Nxd4 {[%clk 0:03:02.8]} 4... Nf6 {[%clk 0:03:00.7]} 5. Nc3 {[%clk 0:03:03.4]}
5... d6 {[%clk 0:03:00.9]} 6. f3 {[%clk 0:03:01.9]} 6... a6 {[%clk 0:03:00.4]}
7. Be3 {[%clk 0:03:01.9]} 7... b5 {[%clk 0:03:00.5]} 8. Qd2 {[%clk 0:03:02]}
8... Bb7 {[%clk 0:03:00.6]} 9. g4 {[%clk 0:03:02]} 9... Nc6 {[%clk 0:02:59.9]}
10. O-O-O {[%clk 0:02:57.4]} 10... Rc8 {[%clk 0:02:59.3]} 11. Kb1 {[%clk
0:02:55.9]} 11... Be7 {[%clk 0:02:58.5]} 12. g5 {[%clk 0:02:55.2]} 12... Nd7
{[%clk 0:02:58.2]} 13. Nxc6 {[%clk 0:02:54.1]} 13... Bxc6 {[%clk 0:02:55.5]} 14.
a3 {[%clk 0:02:54.3]} 14... O-O {[%clk 0:02:54.7]} 15. h4 {[%clk 0:02:53.2]}
15... Bb7 {[%clk 0:02:54.4]} 16. h5 {[%clk 0:02:39.9]} 16... Ne5 {[%clk
0:02:53.6]} 17. Be2 {[%clk 0:02:09.7]} 17... Qd7 {[%clk 0:02:12.4]} 18. Rhg1
{[%clk 0:01:44.9]} 18... g6 {[%clk 0:01:49.4]} 19. f4 {[%clk 0:01:37.1]} 19...
Nc4 {[%clk 0:01:48.8]} 20. Bxc4 {[%clk 0:01:37.1]} 20... Rxc4 {[%clk 0:01:48.6]}
21. Qd3 {[%clk 0:01:22.4]} 21... Rfc8 {[%clk 0:01:45.6]} 22. Bd4 {[%clk
0:01:17.4]} 22... a5 {[%clk 0:01:34.4]} 23. hxg6 {[%clk 0:01:11.7]} 23... fxg6
{[%clk 0:01:29.6]} 24. Rh1 {[%clk 0:00:58.5]} 24... Bf8 {[%clk 0:01:25.1]} 25.
Rh2 {[%clk 0:00:31.4]} 25... b4 {[%clk 0:01:24.4]} 26. axb4 {[%clk 0:00:31]}
26... axb4 {[%clk 0:01:24.1]} 27. Na2 {[%clk 0:00:31.3]} 27... Qc6 {[%clk
0:00:56.3]} 28. Rxh7 {[%clk 0:00:24.8]} 28... e5 {[%clk 0:00:33.7]} 29. Qh3
{[%clk 0:00:20.5]} 29... Rxd4 {[%clk 0:00:24.8]} 30. Qe6+ {[%clk 0:00:20.2]}
30... Kxh7 {[%clk 0:00:23.5]} 31. Qf7+ {[%clk 0:00:19.9]} 31... Bg7 {[%clk
0:00:21.1]} 32. Rh1# {[%clk 0:00:20.3]} 1-0

[Event "*** SCC Grand Prix: Titled Tuesday Blitz"]
[Site "Chess.com"]
[Date "2020.09.08"]
[Round "8"]
[White "annamaja"]
[Black "lider34"]
[Result "1-0"]
[WhiteElo "2301"]
[BlackElo "2397"]
[TimeControl "180+1"]
[EndTime "11:35:58 PDT"]
[Termination "annamaja won by checkmate"]

1. e4 {[%clk 0:03:00.9]} 1... c5 {[%clk 0:02:58.9]} 2. Nf3 {[%clk 0:03:00.9]}
2... d6 {[%clk 0:02:58.2]} 3. d4 {[%clk 0:03:01]} 3... cxd4 {[%clk 0:02:58.4]}
4. Nxd4 {[%clk 0:03:01.9]} 4... Nf6 {[%clk 0:02:58.3]} 5. Nc3 {[%clk 0:03:01.9]}
5... g6 {[%clk 0:02:58.5]} 6. g3 {[%clk 0:03:00.9]} 6... Nc6 {[%clk 0:02:57.1]}
7. Bg2 {[%clk 0:02:59]} 7... Nxd4 {[%clk 0:02:55.9]} 8. Qxd4 {[%clk 0:02:58.8]}
8... Bg7 {[%clk 0:02:56.3]} 9. Qd3 {[%clk 0:02:56.1]} 9... O-O {[%clk
0:02:55.5]} 10. O-O {[%clk 0:02:55.4]} 10... Be6 {[%clk 0:02:52.2]} 11. Kh1
{[%clk 0:02:42]} 11... Qc8 {[%clk 0:02:38.2]} 12. Qd2 {[%clk 0:02:30.5]} 12...
Qc4 {[%clk 0:02:32.1]} 13. f4 {[%clk 0:02:27]} 13... Rac8 {[%clk 0:02:16.7]} 14.
f5 {[%clk 0:02:26.4]} 14... Bd7 {[%clk 0:02:11.7]} 15. fxg6 {[%clk 0:02:21.8]}
15... hxg6 {[%clk 0:02:08.9]} 16. e5 {[%clk 0:02:19.6]} 16... Ng4 {[%clk
0:01:42.1]} 17. Rf4 {[%clk 0:02:06]} 17... Qc5 {[%clk 0:01:36.4]} 18. exd6
{[%clk 0:01:58.1]} 18... exd6 {[%clk 0:01:32.7]} 19. Nd5 {[%clk 0:01:34.6]}
19... Rfe8 {[%clk 0:01:27.6]} 20. Rf1 {[%clk 0:01:17]} 20... Qxc2 {[%clk
0:01:24]} 21. Qf4 {[%clk 0:01:02.4]} 21... f5 {[%clk 0:01:17.8]} 22. Qxd6 {[%clk
0:00:55.5]} 22... Nf2+ {[%clk 0:01:07.4]} 23. Kg1 {[%clk 0:00:50.7]} 23... Re2
{[%clk 0:00:57.8]} 24. Ne7+ {[%clk 0:00:36.2]} 24... Rxe7 {[%clk 0:00:44.2]} 25.
Qxe7 {[%clk 0:00:37.1]} 25... Bd4 {[%clk 0:00:23.8]} 26. Bd5+ {[%clk 0:00:20.7]}
26... Kh8 {[%clk 0:00:21.4]} 27. Qh4+ {[%clk 0:00:20.1]} 27... Kg7 {[%clk
0:00:18.7]} 28. Bh6+ {[%clk 0:00:20.7]} 28... Kh7 {[%clk 0:00:12.4]} 29. Bf8#
{[%clk 0:00:21.4]} 1-0

[Event "*** SCC Grand Prix: Titled Tuesday Blitz"]
[Site "Chess.com"]
[Date "2020.09.08"]
[Round "8"]
[White "angryhorse9"]
[Black "jamik13"]
[Result "1-0"]
[WhiteElo "2518"]
[BlackElo "2230"]
[TimeControl "180+1"]
[EndTime "11:36:02 PDT"]
[Termination "angryhorse9 won on time"]

1. e4 {[%clk 0:03:00.9]} 1... e5 {[%clk 0:02:59.2]} 2. Bc4 {[%clk 0:03:00.5]}
2... Nc6 {[%clk 0:02:58.3]} 3. Nc3 {[%clk 0:03:00.7]} 3... Nf6 {[%clk 0:02:57]}
4. d3 {[%clk 0:03:01]} 4... Bc5 {[%clk 0:02:54.1]} 5. f4 {[%clk 0:03:01.3]} 5...
d6 {[%clk 0:02:50]} 6. Nf3 {[%clk 0:03:00.4]} 6... O-O {[%clk 0:02:38.2]} 7. f5
{[%clk 0:02:59.8]} 7... Ng4 {[%clk 0:02:32]} 8. Qe2 {[%clk 0:02:58.2]} 8... Bf2+
{[%clk 0:02:10.9]} 9. Kf1 {[%clk 0:02:57.2]} 9... Bb6 {[%clk 0:02:05.5]} 10. Nd5
{[%clk 0:02:37.6]} 10... Kh8 {[%clk 0:01:51.5]} 11. h3 {[%clk 0:02:30]} 11...
Nf6 {[%clk 0:01:33.2]} 12. Bg5 {[%clk 0:02:28.9]} 12... Nd4 {[%clk 0:01:13.6]}
13. Nxd4 {[%clk 0:02:25.5]} 13... Bxd4 {[%clk 0:01:13.3]} 14. c3 {[%clk
0:01:33.2]} 14... Bb6 {[%clk 0:01:11.3]} 15. Nxf6 {[%clk 0:01:11.2]} 15... gxf6
{[%clk 0:01:09.8]} 16. Bh4 {[%clk 0:01:11.8]} 16... c6 {[%clk 0:01:04.8]} 17.
Qh5 {[%clk 0:01:07.7]} 17... Kg7 {[%clk 0:00:42.8]} 18. Ke2 {[%clk 0:00:43.1]}
18... d5 {[%clk 0:00:40.7]} 19. Bb3 {[%clk 0:00:43]} 19... h6 {[%clk 0:00:32.7]}
20. Rhf1 {[%clk 0:00:40]} 20... Kh7 {[%clk 0:00:28.9]} 21. Rf3 {[%clk
0:00:34.3]} 21... Qe7 {[%clk 0:00:20.4]} 22. g4 {[%clk 0:00:23.4]} 22... Bd7
{[%clk 0:00:13.2]} 23. g5 {[%clk 0:00:19.1]} 23... fxg5 {[%clk 0:00:12.7]} 24.
f6 {[%clk 0:00:18.2]} 1-0

[Event "*** SCC Grand Prix: Titled Tuesday Blitz"]
[Site "Chess.com"]
[Date "2020.09.08"]
[Round "8"]
[White "Grandelicious"]
[Black "Mazetovic"]
[Result "1-0"]
[WhiteElo "2806"]
[BlackElo "2638"]
[TimeControl "180+1"]
[EndTime "11:36:05 PDT"]
[Termination "Grandelicious won by resignation"]

1. Nf3 {[%clk 0:03:00.9]} 1... Nf6 {[%clk 0:02:58.6]} 2. g3 {[%clk 0:03:00.8]}
2... g6 {[%clk 0:02:58.7]} 3. b3 {[%clk 0:03:01.5]} 3... Bg7 {[%clk 0:02:58.4]}
4. Bb2 {[%clk 0:03:02.1]} 4... O-O {[%clk 0:02:57.6]} 5. Bg2 {[%clk 0:03:02.7]}
5... d6 {[%clk 0:02:57]} 6. c4 {[%clk 0:03:02.5]} 6... e5 {[%clk 0:02:54.3]} 7.
O-O {[%clk 0:03:02.5]} 7... c5 {[%clk 0:02:54.5]} 8. Nc3 {[%clk 0:03:02.8]} 8...
Nc6 {[%clk 0:02:52.9]} 9. d3 {[%clk 0:03:03.1]} 9... h6 {[%clk 0:02:49.9]} 10.
Ne1 {[%clk 0:03:00.6]} 10... Be6 {[%clk 0:02:48]} 11. Nd5 {[%clk 0:02:47.9]}
11... Rb8 {[%clk 0:02:32.6]} 12. Nc2 {[%clk 0:02:43.9]} 12... Qd7 {[%clk
0:02:22.7]} 13. Nce3 {[%clk 0:02:36.5]} 13... Nh7 {[%clk 0:02:15.8]} 14. a3
{[%clk 0:02:30.8]} 14... b5 {[%clk 0:02:12.8]} 15. cxb5 {[%clk 0:02:03.2]} 15...
Rxb5 {[%clk 0:02:10.6]} 16. b4 {[%clk 0:02:03.5]} 16... Nd4 {[%clk 0:00:53.3]}
17. Bc3 {[%clk 0:01:25.1]} 17... Nf6 {[%clk 0:00:41.1]} 18. Nxf6+ {[%clk
0:01:03.8]} 18... Bxf6 {[%clk 0:00:40.7]} 19. a4 {[%clk 0:01:02.4]} 19... Rxb4
{[%clk 0:00:35]} 20. Bxb4 {[%clk 0:01:02.6]} 20... cxb4 {[%clk 0:00:35.4]} 21.
Nd5 {[%clk 0:01:03.1]} 21... Bxd5 {[%clk 0:00:30.1]} 22. Bxd5 {[%clk 0:01:04]}
22... a5 {[%clk 0:00:30.2]} 23. e3 {[%clk 0:01:03.5]} 23... Ne6 {[%clk
0:00:27.7]} 24. Qg4 {[%clk 0:00:58.2]} 24... Re8 {[%clk 0:00:17.1]} 25. Rfc1
{[%clk 0:00:54.3]} 25... h5 {[%clk 0:00:17.1]} 26. Bxe6 {[%clk 0:00:50.1]} 26...
Rxe6 {[%clk 0:00:16.8]} 27. Qc4 {[%clk 0:00:50.6]} 27... d5 {[%clk 0:00:16.8]}
28. Qc8+ {[%clk 0:00:50.6]} 28... Qxc8 {[%clk 0:00:16.6]} 29. Rxc8+ {[%clk
0:00:51.5]} 29... Kg7 {[%clk 0:00:17.1]} 30. Rc5 {[%clk 0:00:52.1]} 30... d4
{[%clk 0:00:12.4]} 31. exd4 {[%clk 0:00:48.5]} 31... exd4 {[%clk 0:00:12.4]} 32.
Rxa5 {[%clk 0:00:49.2]} 32... Rc6 {[%clk 0:00:11.5]} 33. Rb5 {[%clk 0:00:47.4]}
33... Be7 {[%clk 0:00:11.6]} 34. a5 {[%clk 0:00:47]} 34... Ra6 {[%clk
0:00:07.8]} 35. Rb6 {[%clk 0:00:43.7]} 35... Ra7 {[%clk 0:00:05.6]} 36. a6
{[%clk 0:00:43.4]} 36... Bc5 {[%clk 0:00:05.6]} 37. Rb5 {[%clk 0:00:41.2]} 37...
Be7 {[%clk 0:00:04.5]} 38. Rb7 {[%clk 0:00:40.3]} 1-0

[Event "*** SCC Grand Prix: Titled Tuesday Blitz"]
[Site "Chess.com"]
[Date "2020.09.08"]
[Round "8"]
[White "kosya4ok"]
[Black "Alexander_Zubov"]
[Result "0-1"]
[WhiteElo "2679"]
[BlackElo "2956"]
[TimeControl "180+1"]
[EndTime "11:36:08 PDT"]
[Termination "Alexander_Zubov won on time"]

1. d4 {[%clk 0:03:00.9]} 1... Nf6 {[%clk 0:02:59.2]} 2. c4 {[%clk 0:03:01.1]}
2... g6 {[%clk 0:02:58.9]} 3. Nc3 {[%clk 0:03:00.3]} 3... d5 {[%clk 0:02:58.7]}
4. Nf3 {[%clk 0:02:55.9]} 4... Bg7 {[%clk 0:02:58.2]} 5. h4 {[%clk 0:02:55.2]}
5... c6 {[%clk 0:02:57.2]} 6. Bg5 {[%clk 0:02:54.1]} 6... h6 {[%clk 0:02:56.5]}
7. Bxf6 {[%clk 0:02:52.7]} 7... Bxf6 {[%clk 0:02:56.7]} 8. e3 {[%clk 0:02:53.4]}
8... e6 {[%clk 0:02:55]} 9. Qc2 {[%clk 0:02:51.5]} 9... Nd7 {[%clk 0:02:50.9]}
10. O-O-O {[%clk 0:02:47.8]} 10... Bg7 {[%clk 0:02:50.1]} 11. g4 {[%clk
0:02:44.7]} 11... O-O {[%clk 0:02:45.5]} 12. g5 {[%clk 0:02:28]} 12... h5 {[%clk
0:02:44.1]} 13. Bd3 {[%clk 0:02:26.6]} 13... b5 {[%clk 0:02:31.4]} 14. cxd5
{[%clk 0:02:05.4]} 14... b4 {[%clk 0:02:14.7]} 15. Ne4 {[%clk 0:01:47.6]} 15...
cxd5 {[%clk 0:02:11]} 16. Nd6 {[%clk 0:01:36.7]} 16... Qb6 {[%clk 0:01:58.4]}
17. Nxf7 {[%clk 0:00:51.9]} 17... Rxf7 {[%clk 0:01:56]} 18. Nd2 {[%clk
0:00:44.4]} 18... Ba6 {[%clk 0:01:10.8]} 19. Bxa6 {[%clk 0:00:43.8]} 19... Qxa6
{[%clk 0:01:10.6]} 20. Qxg6 {[%clk 0:00:44.3]} 20... Qxa2 {[%clk 0:01:01.6]} 21.
Rdf1 {[%clk 0:00:32.4]} 21... Rc8+ {[%clk 0:00:57]} 22. Kd1 {[%clk 0:00:32.6]}
22... Qxb2 {[%clk 0:00:52]} 23. f4 {[%clk 0:00:31.9]} 23... Nf8 {[%clk
0:00:46.3]} 24. Qxh5 {[%clk 0:00:30]} 24... Rc2 {[%clk 0:00:45.8]} 25. Rh2
{[%clk 0:00:08.6]} 25... Rfc7 {[%clk 0:00:40.9]} 26. Ke1 {[%clk 0:00:05]} 26...
Rc1+ {[%clk 0:00:27]} 27. Ke2 {[%clk 0:00:05.4]} 27... R7c2 {[%clk 0:00:27.1]}
28. Rxc1 {[%clk 0:00:02.8]} 28... Rxd2+ {[%clk 0:00:23.4]} 29. Kf3 {[%clk
0:00:03]} 29... Rxh2 {[%clk 0:00:22.1]} 0-1